[Event "*** Titled Tuesday Blitz"]
[Site "Chess.com"]
[Date "2020.04.14"]
[Round "6"]
[White "LiemLe"]
[Black "tigra"]
[Result "0-1"]
[WhiteElo "2996"]
[BlackElo "2840"]
[TimeControl "180+1"]
[EndTime "11:00:20 PDT"]
[Termination "tigra won by resignation"]

1. e4 {[%clk 0:03:00.9]} 1... c5 {[%clk 0:02:59.6]} 2. Nf3 {[%clk 0:03:00.7]}
2... e6 {[%clk 0:02:59.9]} 3. d4 {[%clk 0:03:01.2]} 3... cxd4 {[%clk 0:03:00.2]}
4. Nxd4 {[%clk 0:03:01.9]} 4... Nf6 {[%clk 0:03:00.8]} 5. Nc3 {[%clk 0:03:01.7]}
5... d6 {[%clk 0:03:01.3]} 6. g4 {[%clk 0:02:59.5]} 6... h6 {[%clk 0:03:00.2]}
7. Bg2 {[%clk 0:02:58.2]} 7... Nc6 {[%clk 0:02:58.2]} 8. h3 {[%clk 0:02:54.9]}
8... Be7 {[%clk 0:02:55.4]} 9. Nxc6 {[%clk 0:02:48.2]} 9... bxc6 {[%clk
0:02:55.1]} 10. e5 {[%clk 0:02:49.1]} 10... Nd5 {[%clk 0:02:55.3]} 11. exd6
{[%clk 0:02:49.6]} 11... Qxd6 {[%clk 0:02:54.9]} 12. Ne4 {[%clk 0:02:49.9]}
12... Qb4+ {[%clk 0:02:51.6]} 13. Nd2 {[%clk 0:02:47.5]} 13... Ba6 {[%clk
0:02:50.7]} 14. a3 {[%clk 0:02:40.6]} 14... Qa5 {[%clk 0:02:31.7]} 15. c4 {[%clk
0:02:38.5]} 15... Bxc4 {[%clk 0:02:26.4]} 16. b4 {[%clk 0:02:27.3]} 16... Qa6
{[%clk 0:02:14.5]} 17. Nxc4 {[%clk 0:02:19.5]} 17... Qxc4 {[%clk 0:02:15.4]} 18.
Bb2 {[%clk 0:02:16.5]} 18... Nf4 {[%clk 0:02:00]} 19. Qf3 {[%clk 0:02:05.3]}
19... Nd3+ {[%clk 0:01:34.1]} 20. Qxd3 {[%clk 0:01:59.8]} 20... Qxd3 {[%clk
0:01:33.7]} 21. Bxc6+ {[%clk 0:02:00.7]} 21... Kf8 {[%clk 0:01:32.2]} 22. Bxa8
{[%clk 0:02:01.3]} 22... Bh4 {[%clk 0:01:12.1]} 23. Rd1 {[%clk 0:01:52.3]} 23...
Qe3+ {[%clk 0:01:11.5]} 0-1

[Event "*** Titled Tuesday Blitz"]
[Site "Chess.com"]
[Date "2020.04.14"]
[Round "6"]
[White "PavelChernomordik"]
[Black "Firegrizzly"]
[Result "0-1"]
[WhiteElo "2425"]
[BlackElo "2590"]
[TimeControl "180+1"]
[EndTime "11:00:23 PDT"]
[Termination "Firegrizzly won by resignation"]

1. e4 {[%clk 0:03:00.9]} 1... e6 {[%clk 0:03:00.9]} 2. Nc3 {[%clk 0:02:58.5]}
2... d5 {[%clk 0:02:58.7]} 3. d4 {[%clk 0:02:58.8]} 3... Bb4 {[%clk 0:02:57.5]}
4. Ne2 {[%clk 0:02:58.1]} 4... Ne7 {[%clk 0:02:55.6]} 5. a3 {[%clk 0:02:57.3]}
5... Ba5 {[%clk 0:02:54.9]} 6. e5 {[%clk 0:02:53.6]} 6... a6 {[%clk 0:02:52]} 7.
b4 {[%clk 0:02:49.8]} 7... Bb6 {[%clk 0:02:51.4]} 8. Bg5 {[%clk 0:02:48.8]} 8...
h6 {[%clk 0:02:50.5]} 9. Bh4 {[%clk 0:02:45.1]} 9... Nbc6 {[%clk 0:02:48.2]} 10.
Na4 {[%clk 0:02:41.1]} 10... Ba7 {[%clk 0:02:45]} 11. c3 {[%clk 0:02:40.5]}
11... Bd7 {[%clk 0:02:44.1]} 12. Nc5 {[%clk 0:02:36.1]} 12... Bxc5 {[%clk
0:02:40.2]} 13. bxc5 {[%clk 0:02:34.8]} 13... b6 {[%clk 0:02:40.4]} 14. cxb6
{[%clk 0:02:33.2]} 14... cxb6 {[%clk 0:02:39.9]} 15. f4 {[%clk 0:02:31.6]} 15...
O-O {[%clk 0:02:38.2]} 16. Ng3 {[%clk 0:02:29.6]} 16... Qc7 {[%clk 0:02:37.4]}
17. Bd3 {[%clk 0:02:28.3]} 17... Nf5 {[%clk 0:02:35.6]} 18. Nxf5 {[%clk
0:02:21.5]} 18... exf5 {[%clk 0:02:35.4]} 19. g4 {[%clk 0:02:19.8]} 19... fxg4
{[%clk 0:02:30.9]} 20. f5 {[%clk 0:02:19.5]} 20... h5 {[%clk 0:02:30.3]} 21. O-O
{[%clk 0:02:15]} 21... Na5 {[%clk 0:02:24.4]} 22. Rc1 {[%clk 0:02:12.9]} 22...
Bb5 {[%clk 0:02:24.5]} 23. Bxb5 {[%clk 0:02:06]} 23... axb5 {[%clk 0:02:23.6]}
24. Qd3 {[%clk 0:02:05.6]} 24... Nc4 {[%clk 0:02:21.3]} 25. h3 {[%clk
0:01:59.7]} 25... Rxa3 {[%clk 0:02:20.1]} 26. hxg4 {[%clk 0:01:57.2]} 26... hxg4
{[%clk 0:02:15.3]} 27. Qg3 {[%clk 0:01:53.3]} 27... f6 {[%clk 0:02:13.4]} 28.
Qxg4 {[%clk 0:01:46.3]} 28... fxe5 {[%clk 0:02:12.9]} 29. f6 {[%clk 0:01:44.9]}
29... Ne3 {[%clk 0:02:08.7]} 30. fxg7 {[%clk 0:01:29.4]} 30... Rxf1+ {[%clk
0:02:05.6]} 31. Rxf1 {[%clk 0:01:27.9]} 31... Nxg4 {[%clk 0:02:06]} 0-1

[Event "*** Titled Tuesday Blitz"]
[Site "Chess.com"]
[Date "2020.04.14"]
[Round "6"]
[White "Justinz"]
[Black "beto-betun"]
[Result "0-1"]
[WhiteElo "2263"]
[BlackElo "2112"]
[TimeControl "180+1"]
[EndTime "11:00:34 PDT"]
[Termination "beto-betun won by checkmate"]

1. e4 {[%clk 0:03:00.9]} 1... c5 {[%clk 0:03:00.4]} 2. Nf3 {[%clk 0:02:55.1]}
2... d6 {[%clk 0:03:00.9]} 3. d4 {[%clk 0:02:51.2]} 3... cxd4 {[%clk 0:03:01.3]}
4. Nxd4 {[%clk 0:02:46]} 4... Nf6 {[%clk 0:03:01.9]} 5. Nc3 {[%clk 0:02:44.4]}
5... a6 {[%clk 0:03:02.3]} 6. Rg1 {[%clk 0:02:43.7]} 6... e5 {[%clk 0:03:00.7]}
7. Nb3 {[%clk 0:02:40.4]} 7... b5 {[%clk 0:03:01]} 8. g4 {[%clk 0:02:40.3]} 8...
h6 {[%clk 0:02:51.6]} 9. h4 {[%clk 0:02:37.9]} 9... Bb7 {[%clk 0:02:44.3]} 10.
Bg2 {[%clk 0:02:33.4]} 10... Be7 {[%clk 0:02:34.7]} 11. Be3 {[%clk 0:02:27]}
11... b4 {[%clk 0:02:29.7]} 12. Nd5 {[%clk 0:02:12.4]} 12... Nxd5 {[%clk
0:02:28.1]} 13. exd5 {[%clk 0:02:13.3]} 13... Bxh4 {[%clk 0:02:17.7]} 14. Qd2
{[%clk 0:02:10.5]} 14... a5 {[%clk 0:02:15.1]} 15. a3 {[%clk 0:02:10.1]} 15...
bxa3 {[%clk 0:02:11.9]} 16. Rxa3 {[%clk 0:02:08.7]} 16... a4 {[%clk 0:02:05.7]}
17. Nc1 {[%clk 0:02:04]} 17... Nd7 {[%clk 0:01:54.9]} 18. Ne2 {[%clk 0:02:01.6]}
18... O-O {[%clk 0:01:46.7]} 19. Qb4 {[%clk 0:01:55.4]} 19... Qc7 {[%clk
0:01:40.8]} 20. Nc3 {[%clk 0:01:55.1]} 20... Ba6 {[%clk 0:01:29.7]} 21. Rxa4
{[%clk 0:01:49.7]} 21... Bg5 {[%clk 0:01:27.4]} 22. Ne4 {[%clk 0:01:34]} 22...
Qxc2 {[%clk 0:01:20.3]} 23. Nd2 {[%clk 0:01:31.8]} 23... Qc1# {[%clk 0:01:16.4]}
0-1

[Event "*** Titled Tuesday Blitz"]
[Site "Chess.com"]
[Date "2020.04.14"]
[Round "6"]
[White "cukin84"]
[Black "MilanJeremic"]
[Result "1-0"]
[WhiteElo "2109"]
[BlackElo "2256"]
[TimeControl "180+1"]
[EndTime "11:00:41 PDT"]
[Termination "cukin84 won by checkmate"]

1. e4 {[%clk 0:03:00.9]} 1... c6 {[%clk 0:02:59.2]} 2. d4 {[%clk 0:03:00.6]}
2... d5 {[%clk 0:02:58.8]} 3. exd5 {[%clk 0:03:00.3]} 3... cxd5 {[%clk
0:02:58.3]} 4. Bd3 {[%clk 0:03:00.3]} 4... Nc6 {[%clk 0:02:56.9]} 5. c3 {[%clk
0:03:00]} 5... Nf6 {[%clk 0:02:56.6]} 6. h3 {[%clk 0:02:59.1]} 6... g6 {[%clk
0:02:55.1]} 7. Nf3 {[%clk 0:02:58.8]} 7... Bg7 {[%clk 0:02:54.8]} 8. O-O {[%clk
0:02:58.4]} 8... O-O {[%clk 0:02:54.4]} 9. Bf4 {[%clk 0:02:57.5]} 9... a6 {[%clk
0:02:52.8]} 10. Nbd2 {[%clk 0:02:56.8]} 10... Bf5 {[%clk 0:02:46.9]} 11. Bxf5
{[%clk 0:02:55.4]} 11... gxf5 {[%clk 0:02:46.1]} 12. Re1 {[%clk 0:02:54.9]}
12... e6 {[%clk 0:02:45.8]} 13. Ne5 {[%clk 0:02:48.6]} 13... Ne4 {[%clk
0:02:42.8]} 14. f3 {[%clk 0:02:47]} 14... Nxd2 {[%clk 0:02:40.7]} 15. Qxd2
{[%clk 0:02:46.2]} 15... Nxe5 {[%clk 0:02:39.9]} 16. Bxe5 {[%clk 0:02:45.9]}
16... Qh4 {[%clk 0:02:26.2]} 17. Kh2 {[%clk 0:02:36.4]} 17... Kh8 {[%clk
0:02:20.9]} 18. Bg3 {[%clk 0:02:32.3]} 18... Qh5 {[%clk 0:02:20.3]} 19. Re2
{[%clk 0:02:30.4]} 19... Rg8 {[%clk 0:02:18.7]} 20. Rae1 {[%clk 0:02:28.7]}
20... Bf6 {[%clk 0:02:13.3]} 21. Be5 {[%clk 0:02:25.5]} 21... Bxe5+ {[%clk
0:02:07.1]} 22. Rxe5 {[%clk 0:02:24.7]} 22... Qg6 {[%clk 0:02:06.4]} 23. g4
{[%clk 0:02:16.2]} 23... fxg4 {[%clk 0:01:59.8]} 24. fxg4 {[%clk 0:02:14.6]}
24... b6 {[%clk 0:01:58.1]} 25. Qf2 {[%clk 0:02:08.6]} 25... b5 {[%clk 0:01:59]}
26. a3 {[%clk 0:02:07.7]} 26... a5 {[%clk 0:01:53.7]} 27. Rf1 {[%clk 0:02:07.7]}
27... Rg7 {[%clk 0:01:51.9]} 28. Re3 {[%clk 0:01:54.7]} 28... b4 {[%clk
0:01:48.8]} 29. axb4 {[%clk 0:01:51.8]} 29... axb4 {[%clk 0:01:48.2]} 30. Rf3
{[%clk 0:01:52]} 30... bxc3 {[%clk 0:01:43.5]} 31. bxc3 {[%clk 0:01:51.3]} 31...
Kg8 {[%clk 0:01:37.9]} 32. Rf6 {[%clk 0:01:50.6]} 32... Qd3 {[%clk 0:01:35.9]}
33. Rxf7 {[%clk 0:01:45.7]} 33... Ra2 {[%clk 0:01:26.6]} 34. Rf8# {[%clk
0:01:42.2]} 1-0

[Event "*** Titled Tuesday Blitz"]
[Site "Chess.com"]
[Date "2020.04.14"]
[Round "6"]
[White "TV27"]
[Black "lelya96"]
[Result "1-0"]
[WhiteElo "2078"]
[BlackElo "2246"]
[TimeControl "180+1"]
[EndTime "11:00:51 PDT"]
[Termination "TV27 won by checkmate"]

1. c4 {[%clk 0:03:00.9]} 1... Nf6 {[%clk 0:02:59.3]} 2. Nc3 {[%clk 0:02:59.7]}
2... e6 {[%clk 0:03:00.2]} 3. e4 {[%clk 0:02:53.4]} 3... d5 {[%clk 0:03:00.1]}
4. e5 {[%clk 0:02:53]} 4... d4 {[%clk 0:02:58.6]} 5. exf6 {[%clk 0:02:52.2]}
5... dxc3 {[%clk 0:02:58.9]} 6. bxc3 {[%clk 0:02:51.7]} 6... Qxf6 {[%clk
0:02:57.3]} 7. d4 {[%clk 0:02:51.3]} 7... c5 {[%clk 0:02:52.9]} 8. Nf3 {[%clk
0:02:49.9]} 8... h6 {[%clk 0:02:52.6]} 9. Bd3 {[%clk 0:02:43.4]} 9... Nc6 {[%clk
0:02:52.3]} 10. Be3 {[%clk 0:02:36.2]} 10... g6 {[%clk 0:02:38.8]} 11. O-O
{[%clk 0:02:34.7]} 11... Bg7 {[%clk 0:02:37.2]} 12. d5 {[%clk 0:02:20.9]} 12...
Ne5 {[%clk 0:02:19.1]} 13. Nxe5 {[%clk 0:02:18.8]} 13... Qxe5 {[%clk 0:02:19.2]}
14. Bxc5 {[%clk 0:02:17.8]} 14... Qxc3 {[%clk 0:02:17.8]} 15. Rc1 {[%clk
0:01:44.8]} 15... Qa5 {[%clk 0:02:16.7]} 16. Bd6 {[%clk 0:01:33.9]} 16... Qxa2
{[%clk 0:02:08.5]} 17. Re1 {[%clk 0:01:31.5]} 17... Bd7 {[%clk 0:02:06.8]} 18.
dxe6 {[%clk 0:01:30.4]} 18... Bxe6 {[%clk 0:01:54.6]} 19. Rxe6+ {[%clk
0:01:29.1]} 19... fxe6 {[%clk 0:01:52.4]} 20. Bxg6+ {[%clk 0:01:26.3]} 20... Kd7
{[%clk 0:01:46.8]} 21. Bf4+ {[%clk 0:01:05.7]} 21... Kc8 {[%clk 0:01:39.4]} 22.
Qd6 {[%clk 0:01:04.2]} 22... e5 {[%clk 0:01:30.1]} 23. Bf5# {[%clk 0:01:03.2]}
1-0

[Event "*** Titled Tuesday Blitz"]
[Site "Chess.com"]
[Date "2020.04.14"]
[Round "6"]
[White "ValeriyGrinev"]
[Black "Kingsman132"]
[Result "0-1"]
[WhiteElo "2588"]
[BlackElo "2446"]
[TimeControl "180+1"]
[EndTime "11:00:54 PDT"]
[Termination "Kingsman132 won by resignation"]

1. d4 {[%clk 0:03:00.9]} 1... Nf6 {[%clk 0:02:57.5]} 2. c4 {[%clk 0:03:00.4]}
2... e6 {[%clk 0:02:58]} 3. Nc3 {[%clk 0:03:00]} 3... Bb4 {[%clk 0:02:56.2]} 4.
e3 {[%clk 0:03:00]} 4... d5 {[%clk 0:02:53.6]} 5. a3 {[%clk 0:02:58.9]} 5...
Bxc3+ {[%clk 0:02:50.4]} 6. bxc3 {[%clk 0:02:59.8]} 6... O-O {[%clk 0:02:49.3]}
7. Bd3 {[%clk 0:02:58]} 7... c5 {[%clk 0:02:47.3]} 8. cxd5 {[%clk 0:02:58.1]}
8... Qxd5 {[%clk 0:02:43.3]} 9. f3 {[%clk 0:02:57.3]} 9... Nc6 {[%clk
0:02:39.3]} 10. Ne2 {[%clk 0:02:56.8]} 10... Qd6 {[%clk 0:02:36.5]} 11. O-O
{[%clk 0:02:54.2]} 11... e5 {[%clk 0:02:34.2]} 12. Bb2 {[%clk 0:02:54]} 12...
Rd8 {[%clk 0:02:30.8]} 13. Qc2 {[%clk 0:02:37.4]} 13... Be6 {[%clk 0:02:19.1]}
14. e4 {[%clk 0:02:08.9]} 14... c4 {[%clk 0:02:15.3]} 15. d5 {[%clk 0:01:54.3]}
15... Qc5+ {[%clk 0:02:11.2]} 16. Kh1 {[%clk 0:01:53.4]} 16... cxd3 {[%clk
0:02:11]} 17. Qxd3 {[%clk 0:01:54.3]} 17... Na5 {[%clk 0:02:02.7]} 18. Bc1
{[%clk 0:01:33.6]} 18... Nc4 {[%clk 0:01:54.2]} 19. Bg5 {[%clk 0:01:33.3]} 19...
Rd6 {[%clk 0:01:47.9]} 20. f4 {[%clk 0:01:28.5]} 20... Nxe4 {[%clk 0:01:36.7]}
21. Qxe4 {[%clk 0:01:23.1]} 21... Bxd5 {[%clk 0:01:35]} 22. Qb1 {[%clk
0:01:12.6]} 22... Nd2 {[%clk 0:01:30.2]} 23. Qb4 {[%clk 0:01:12.6]} 23... Qxb4
{[%clk 0:01:27.9]} 24. cxb4 {[%clk 0:01:12]} 24... Nxf1 {[%clk 0:01:25.4]} 25.
Rxf1 {[%clk 0:01:12.1]} 25... Bc4 {[%clk 0:01:26.1]} 0-1

[Event "*** Titled Tuesday Blitz"]
[Site "Chess.com"]
[Date "2020.04.14"]
[Round "6"]
[White "Indianlad"]
[Black "theprosecution1"]
[Result "1-0"]
[WhiteElo "2975"]
[BlackElo "2805"]
[TimeControl "180+1"]
[EndTime "11:01:02 PDT"]
[Termination "Indianlad won by resignation"]

1. Nf3 {[%clk 0:03:00.9]} 1... Nf6 {[%clk 0:02:59.8]} 2. c4 {[%clk 0:03:01.1]}
2... e6 {[%clk 0:02:52]} 3. Nc3 {[%clk 0:03:00.6]} 3... d5 {[%clk 0:02:51.4]} 4.
e3 {[%clk 0:03:01]} 4... Be7 {[%clk 0:02:50.5]} 5. b3 {[%clk 0:03:01.2]} 5...
O-O {[%clk 0:02:50.4]} 6. Bb2 {[%clk 0:03:01.9]} 6... b6 {[%clk 0:02:50.5]} 7.
g4 {[%clk 0:02:50.2]} 7... Bb7 {[%clk 0:02:43.4]} 8. g5 {[%clk 0:02:50.2]} 8...
Ne4 {[%clk 0:02:39.5]} 9. Rg1 {[%clk 0:02:50.6]} 9... dxc4 {[%clk 0:02:30.8]}
10. bxc4 {[%clk 0:02:49.7]} 10... Nd7 {[%clk 0:02:24.7]} 11. Be2 {[%clk
0:02:44.4]} 11... Ndc5 {[%clk 0:02:22]} 12. Qc2 {[%clk 0:02:44.9]} 12... Re8
{[%clk 0:01:58.9]} 13. O-O-O {[%clk 0:02:39.4]} 13... Nxc3 {[%clk 0:01:44.8]}
14. Bxc3 {[%clk 0:02:32.4]} 14... Qd7 {[%clk 0:01:20.6]} 15. d4 {[%clk
0:02:23.8]} 15... Ne4 {[%clk 0:01:16.5]} 16. Ne5 {[%clk 0:02:23.5]} 16... Qc8
{[%clk 0:01:13.8]} 17. Bb2 {[%clk 0:02:23.6]} 17... Bf8 {[%clk 0:00:34.5]} 18.
Bd3 {[%clk 0:02:21.6]} 18... f5 {[%clk 0:00:10.3]} 19. gxf6 {[%clk 0:02:21.9]}
19... Nxf6 {[%clk 0:00:10.6]} 20. Rg3 {[%clk 0:02:22.7]} 20... Re7 {[%clk
0:00:06.6]} 21. Rdg1 {[%clk 0:02:22.9]} 21... c5 {[%clk 0:00:06.7]} 22. Rh3
{[%clk 0:02:23.1]} 22... h6 {[%clk 0:00:05.9]} 23. Rxh6 {[%clk 0:02:22.5]} 23...
cxd4 {[%clk 0:00:04.7]} 24. Bh7+ {[%clk 0:02:22.7]} 1-0

[Event "*** Titled Tuesday Blitz"]
[Site "Chess.com"]
[Date "2020.04.14"]
[Round "6"]
[White "FMOlexandrProhorov"]
[Black "Sharafiev_Azat"]
[Result "1-0"]
[WhiteElo "2136"]
[BlackElo "2501"]
[TimeControl "180+1"]
[EndTime "11:01:03 PDT"]
[Termination "FMOlexandrProhorov won by resignation"]

1. e4 {[%clk 0:03:00.9]} 1... c5 {[%clk 0:02:52.5]} 2. c3 {[%clk 0:03:00]} 2...
e6 {[%clk 0:02:51.9]} 3. d4 {[%clk 0:02:59.6]} 3... d5 {[%clk 0:02:51.9]} 4.
exd5 {[%clk 0:02:59.1]} 4... exd5 {[%clk 0:02:51.9]} 5. Nf3 {[%clk 0:02:59.7]}
5... Nf6 {[%clk 0:02:48.6]} 6. Bb5+ {[%clk 0:02:59.5]} 6... Bd7 {[%clk
0:02:46.7]} 7. Qe2+ {[%clk 0:02:54.6]} 7... Be7 {[%clk 0:02:46.2]} 8. dxc5
{[%clk 0:02:53.6]} 8... O-O {[%clk 0:02:46.6]} 9. O-O {[%clk 0:02:53.6]} 9...
Bxc5 {[%clk 0:02:45.2]} 10. Bg5 {[%clk 0:02:48.7]} 10... h6 {[%clk 0:02:42.4]}
11. Bh4 {[%clk 0:02:48.1]} 11... Re8 {[%clk 0:02:39]} 12. Qd3 {[%clk 0:02:46.3]}
12... Qb6 {[%clk 0:02:28.3]} 13. Bxd7 {[%clk 0:02:38.3]} 13... Nbxd7 {[%clk
0:02:28.2]} 14. b4 {[%clk 0:02:38.4]} 14... Bd6 {[%clk 0:02:21.5]} 15. Nbd2
{[%clk 0:02:38.2]} 15... Rac8 {[%clk 0:02:12.2]} 16. Nd4 {[%clk 0:02:36]} 16...
Ne5 {[%clk 0:01:57.1]} 17. Qh3 {[%clk 0:02:28.6]} 17... Ne4 {[%clk 0:01:49.7]}
18. Nxe4 {[%clk 0:02:25.1]} 18... dxe4 {[%clk 0:01:49.6]} 19. Rac1 {[%clk
0:02:23.1]} 19... Nd3 {[%clk 0:01:48]} 20. Rc2 {[%clk 0:02:20.8]} 20... Bxb4
{[%clk 0:01:41.3]} 21. Nf5 {[%clk 0:02:11.5]} 21... Bxc3 {[%clk 0:01:33.8]} 22.
Ne7+ {[%clk 0:02:10.4]} 22... Kf8 {[%clk 0:01:09.5]} 23. Nxc8 {[%clk 0:02:07.1]}
23... Qc5 {[%clk 0:01:09.9]} 24. Nd6 {[%clk 0:01:58.5]} 24... Nb4 {[%clk
0:00:59.6]} 25. Qd7 {[%clk 0:01:45.9]} 1-0

[Event "*** Titled Tuesday Blitz"]
[Site "Chess.com"]
[Date "2020.04.14"]
[Round "6"]
[White "DanielDardha2005"]
[Black "enzovsky"]
[Result "1-0"]
[WhiteElo "2578"]
[BlackElo "2333"]
[TimeControl "180+1"]
[EndTime "11:01:06 PDT"]
[Termination "DanielDardha2005 won by resignation"]

1. e4 {[%clk 0:03:00.9]} 1... c5 {[%clk 0:02:59.9]} 2. Nc3 {[%clk 0:02:59.5]}
2... d6 {[%clk 0:02:59.8]} 3. Nge2 {[%clk 0:02:58.7]} 3... Nf6 {[%clk
0:02:59.4]} 4. g3 {[%clk 0:02:58.3]} 4... Nc6 {[%clk 0:02:54.7]} 5. Bg2 {[%clk
0:02:57.1]} 5... g6 {[%clk 0:02:52.9]} 6. d4 {[%clk 0:02:56]} 6... cxd4 {[%clk
0:02:40.4]} 7. Nxd4 {[%clk 0:02:56.9]} 7... Nxd4 {[%clk 0:02:32.4]} 8. Qxd4
{[%clk 0:02:57.8]} 8... Bg7 {[%clk 0:02:29.8]} 9. O-O {[%clk 0:02:57.5]} 9...
O-O {[%clk 0:02:26.3]} 10. Qc4 {[%clk 0:02:57.6]} 10... Be6 {[%clk 0:02:18.1]}
11. Nd5 {[%clk 0:02:55]} 11... Rc8 {[%clk 0:02:17.3]} 12. Qe2 {[%clk 0:02:53.2]}
12... Nxd5 {[%clk 0:02:08.6]} 13. exd5 {[%clk 0:02:54.1]} 13... Bf5 {[%clk
0:02:09.5]} 14. c3 {[%clk 0:02:52.8]} 14... Qd7 {[%clk 0:02:05.9]} 15. Bg5
{[%clk 0:02:51]} 15... Rfe8 {[%clk 0:02:00.6]} 16. Rfe1 {[%clk 0:02:51]} 16...
h6 {[%clk 0:01:55.1]} 17. Be3 {[%clk 0:02:46.6]} 17... a6 {[%clk 0:01:52.1]} 18.
a4 {[%clk 0:02:44.3]} 18... Bh3 {[%clk 0:01:51]} 19. Bh1 {[%clk 0:02:40.8]}
19... Bg4 {[%clk 0:01:50.8]} 20. Qd2 {[%clk 0:02:40]} 20... Kh7 {[%clk
0:01:49.9]} 21. a5 {[%clk 0:02:39.8]} 21... Qb5 {[%clk 0:01:43.3]} 22. Bb6
{[%clk 0:02:32.5]} 22... h5 {[%clk 0:01:35]} 23. Re4 {[%clk 0:02:30.4]} 23...
Bf5 {[%clk 0:01:31.2]} 24. Rb4 {[%clk 0:02:29.3]} 24... Qd7 {[%clk 0:01:31.1]}
25. Re1 {[%clk 0:02:25.8]} 25... h4 {[%clk 0:01:29.1]} 26. Rxh4+ {[%clk
0:02:24.4]} 26... Kg8 {[%clk 0:01:27.2]} 27. Bd4 {[%clk 0:02:24.3]} 27... e5
{[%clk 0:01:21.9]} 28. dxe6 {[%clk 0:02:21.2]} 28... Rxe6 {[%clk 0:01:18.9]} 29.
Rxe6 {[%clk 0:02:08.5]} 29... fxe6 {[%clk 0:01:13.4]} 30. Bxg7 {[%clk
0:02:05.5]} 30... Qxg7 {[%clk 0:01:10.3]} 31. Qxd6 {[%clk 0:02:04.1]} 31... Qf6
{[%clk 0:01:06]} 32. Qd7 {[%clk 0:01:57.9]} 32... Rd8 {[%clk 0:00:54.7]} 33.
Qh7+ {[%clk 0:01:57.7]} 33... Kf8 {[%clk 0:00:53.9]} 34. Qh8+ {[%clk 0:01:58.6]}
34... Ke7 {[%clk 0:00:53.9]} 35. Rh7+ {[%clk 0:01:56.6]} 1-0

[Event "*** Titled Tuesday Blitz"]
[Site "Chess.com"]
[Date "2020.04.14"]
[Round "6"]
[White "GamayevOleg"]
[Black "Casablanca"]
[Result "1/2-1/2"]
[WhiteElo "2521"]
[BlackElo "2359"]
[TimeControl "180+1"]
[EndTime "11:01:08 PDT"]
[Termination "Game drawn - insufficient material"]

1. d3 {[%clk 0:03:00.9]} 1... d5 {[%clk 0:02:56.7]} 2. e4 {[%clk 0:03:01.8]}
2... dxe4 {[%clk 0:02:48.7]} 3. dxe4 {[%clk 0:03:02.7]} 3... e5 {[%clk
0:02:48.3]} 4. Qxd8+ {[%clk 0:03:01.9]} 4... Kxd8 {[%clk 0:02:48.5]} 5. Nf3
{[%clk 0:03:02.3]} 5... f6 {[%clk 0:02:48.4]} 6. Nfd2 {[%clk 0:03:02.1]} 6... c6
{[%clk 0:02:47.6]} 7. f3 {[%clk 0:03:02.3]} 7... Be6 {[%clk 0:02:47.6]} 8. c3
{[%clk 0:03:03.2]} 8... Nd7 {[%clk 0:02:46]} 9. Bc4 {[%clk 0:03:03]} 9... Bxc4
{[%clk 0:02:46]} 10. Nxc4 {[%clk 0:03:03.1]} 10... Kc7 {[%clk 0:02:46.9]} 11. a4
{[%clk 0:03:02.8]} 11... Ne7 {[%clk 0:02:41.1]} 12. Kd2 {[%clk 0:02:58.3]} 12...
Rd8 {[%clk 0:02:40.2]} 13. Kc2 {[%clk 0:02:58.3]} 13... Nc8 {[%clk 0:02:39.4]}
14. Nbd2 {[%clk 0:02:56.2]} 14... Nd6 {[%clk 0:02:37]} 15. Nxd6 {[%clk
0:02:54.8]} 15... Bxd6 {[%clk 0:02:36.8]} 16. Nc4 {[%clk 0:02:55.7]} 16... Be7
{[%clk 0:02:35.8]} 17. Rd1 {[%clk 0:02:52.4]} 17... Nb6 {[%clk 0:02:35.9]} 18.
Nxb6 {[%clk 0:02:52.5]} 18... axb6 {[%clk 0:02:36]} 19. Be3 {[%clk 0:02:52.5]}
19... Bc5 {[%clk 0:02:35.3]} 20. Rxd8 {[%clk 0:02:47.8]} 20... Rxd8 {[%clk
0:02:34.5]} 21. Bd2 {[%clk 0:02:48.4]} 21... Ra8 {[%clk 0:02:30.2]} 22. b3
{[%clk 0:02:47.2]} 22... b5 {[%clk 0:02:29.4]} 23. h3 {[%clk 0:02:45.1]} 23...
bxa4 {[%clk 0:02:28.8]} 24. Rxa4 {[%clk 0:02:44.6]} 24... Rxa4 {[%clk
0:02:28.9]} 25. bxa4 {[%clk 0:02:45.5]} 25... Bb6 {[%clk 0:02:14.3]} 26. Kb3
{[%clk 0:02:45]} 26... Ba5 {[%clk 0:02:14.7]} 27. Kc4 {[%clk 0:02:44.8]} 27...
Kd6 {[%clk 0:02:14.8]} 28. Be3 {[%clk 0:02:44.6]} 28... b6 {[%clk 0:02:09.1]}
29. g4 {[%clk 0:02:43.3]} 29... g6 {[%clk 0:02:08.8]} 30. Bd2 {[%clk 0:02:37.9]}
30... h5 {[%clk 0:02:07.4]} 31. Be3 {[%clk 0:02:33.6]} 31... hxg4 {[%clk
0:02:07]} 32. fxg4 {[%clk 0:02:32.3]} 32... Ke6 {[%clk 0:02:03.9]} 33. h4 {[%clk
0:02:23.4]} 33... f5 {[%clk 0:01:22.7]} 34. gxf5+ {[%clk 0:02:18]} 34... gxf5
{[%clk 0:01:23.6]} 35. exf5+ {[%clk 0:02:17.8]} 35... Kxf5 {[%clk 0:01:24.5]}
36. h5 {[%clk 0:02:18.5]} 36... Kf6 {[%clk 0:01:21.7]} 37. Bd2 {[%clk
0:02:11.2]} 37... Kf5 {[%clk 0:01:14.4]} 38. h6 {[%clk 0:02:08.3]} 38... Kg6
{[%clk 0:01:08]} 39. Kd3 {[%clk 0:02:02.1]} 39... b5 {[%clk 0:01:08]} 40. axb5
{[%clk 0:01:57.4]} 40... cxb5 {[%clk 0:01:08.9]} 41. Ke4 {[%clk 0:01:57.6]}
41... Bxc3 {[%clk 0:01:08.4]} 42. Bxc3 {[%clk 0:01:57.5]} 42... Kxh6 {[%clk
0:01:08.6]} 43. Kxe5 {[%clk 0:01:57.7]} 43... b4 {[%clk 0:01:09.1]} 44. Bxb4
{[%clk 0:01:57.9]} 1/2-1/2

[Event "*** Titled Tuesday Blitz"]
[Site "Chess.com"]
[Date "2020.04.14"]
[Round "6"]
[White "Gennady_Kozlov"]
[Black "renehp"]
[Result "1-0"]
[WhiteElo "2583"]
[BlackElo "2420"]
[TimeControl "180+1"]
[EndTime "11:01:15 PDT"]
[Termination "Gennady_Kozlov won by resignation"]

1. b3 {[%clk 0:03:00.9]} 1... e5 {[%clk 0:02:59.6]} 2. Bb2 {[%clk 0:03:00]} 2...
Nc6 {[%clk 0:02:59.7]} 3. e3 {[%clk 0:03:00.3]} 3... d5 {[%clk 0:02:59.7]} 4.
Bb5 {[%clk 0:03:00.3]} 4... Bd6 {[%clk 0:02:56.9]} 5. f4 {[%clk 0:03:00.2]} 5...
f6 {[%clk 0:02:57.3]} 6. Nh3 {[%clk 0:02:59.5]} 6... e4 {[%clk 0:02:34]} 7. Qh5+
{[%clk 0:02:54.1]} 7... g6 {[%clk 0:02:33.2]} 8. Qxd5 {[%clk 0:02:55]} 8... Bxh3
{[%clk 0:02:29.8]} 9. Qxe4+ {[%clk 0:02:50.6]} 9... Kf7 {[%clk 0:02:28.9]} 10.
gxh3 {[%clk 0:02:49.9]} 10... Nge7 {[%clk 0:02:29.1]} 11. Nc3 {[%clk 0:02:45.2]}
11... Re8 {[%clk 0:02:27.5]} 12. Bc4+ {[%clk 0:02:42.1]} 12... Kg7 {[%clk
0:02:27.3]} 13. Qe6 {[%clk 0:02:42.7]} 13... Rf8 {[%clk 0:02:22.4]} 14. Ne4
{[%clk 0:02:41.3]} 14... Nf5 {[%clk 0:02:18.9]} 15. O-O-O {[%clk 0:02:33.9]}
15... a5 {[%clk 0:02:14.9]} 16. a4 {[%clk 0:02:32.2]} 16... Nb4 {[%clk
0:02:07.5]} 17. Rhg1 {[%clk 0:02:29.4]} 17... c6 {[%clk 0:00:40.7]} 18. Qxf5
{[%clk 0:02:21.9]} 18... b5 {[%clk 0:00:40.3]} 19. Rxg6+ {[%clk 0:02:13]} 19...
hxg6 {[%clk 0:00:39.7]} 20. Rg1 {[%clk 0:02:13.9]} 20... Qe8 {[%clk 0:00:28.5]}
21. Nxf6 {[%clk 0:02:11.4]} 21... Na2+ {[%clk 0:00:16.3]} 22. Kb1 {[%clk
0:02:08.3]} 1-0